bitfinex/quotes_BTCUSD_20250124
["timestamp","ask_amount","ask_price","bid_price","bid_amount"]
[1737682286845,0.80401154,103620.0,103610.0,4e-07]
[1737682287150,0.80901154,103620.0,103610.0,0.0010004]
[1737682288330,0.90635883,103620.0,103610.0,0.0010004]
[1737682289326,0.116525,103600.0,103590.0,0.0001423]
[1737682289556,0.30110432,103600.0,103590.0,0.0001423]
[1737682290703,0.50110432,103600.0,103590.0,0.0001423]
[1737682290950,0.50410432,103600.0,103590.0,0.0001423]
[1737682291232,0.205,103600.0,103590.0,0.3767763]
[1737682291682,0.20875703,103600.0,103590.0,0.2802423]
[1737682291916,0.30410432,103600.0,103590.0,0.1501423]
[1737682292145,0.30110432,103600.0,103590.0,0.1501423]
[1737682292372,0.60668364,103600.0,103590.0,0.0001423]
[1737682292634,0.58668364,103600.0,103590.0,0.0001423]
[1737682292861,0.78668364,103600.0,103590.0,0.0001423]
[1737682293869,0.78568364,103600.0,103590.0,0.0001423]
[1737682294137,0.78668364,103600.0,103590.0,0.0001423]
[1737682294634,0.69133635,103600.0,103590.0,0.0001423]
[1737682294881,0.58610432,103600.0,103590.0,0.0001423]
[1737682296075,0.59564889,103600.0,103590.0,0.0001423]
[1737682296295,0.51564889,103600.0,103590.0,0.0001423]
[1737682298277,0.70618092,103600.0,103590.0,0.0001423]
[1737682298498,0.80352821,103600.0,103590.0,0.0001423]
[1737682300695,0.82330855,103600.0,103590.0,0.0001423]
[1737682301550,0.71607652,103600.0,103590.0,0.0001423]
[1737682302345,0.73607652,103600.0,103590.0,0.0001423]
[1737682302520,0.71607652,103600.0,103590.0,0.0001423]
[1737682304778,0.73607652,103600.0,103590.0,0.0001423]
[1737682305187,0.55542923,103600.0,103590.0,0.0001423]
[1737682313652,0.53542923,103600.0,103590.0,0.0001423]
[1737682313828,0.55542923,103600.0,103590.0,0.0001423]
[1737682314918,0.53542923,103600.0,103590.0,0.0001423]
[1737682315166,0.55542923,103600.0,103590.0,0.0001423]
[1737682315385,0.53542923,103600.0,103590.0,0.0473423]
[1737682315598,0.005,103600.0,103590.0,0.2241763]
[1737682315742,0.101525,103600.0,103590.0,0.2241763]
[1737682316151,0.099525,103600.0,103590.0,0.2241763]
[1737682316356,0.096525,103600.0,103590.0,0.2241763]
[1737682316633,0.297525,103600.0,103590.0,0.2241763]
[1737682316881,0.201,103600.0,103590.0,0.2241763]
[1737682317115,0.2,103600.0,103590.0,0.2241763]
[1737682317364,0.201,103600.0,103590.0,0.2241763]
[1737682317571,0.001,103600.0,103590.0,0.25426439]
[1737682318283,0.001,103600.0,103590.0,0.28426439]
[1737682318760,0.001,103600.0,103590.0,0.25426439]
[1737682319024,0.62411483,103610.0,103600.0,0.220725]
[1737682319265,0.82869415,103610.0,103600.0,0.1242]
[1737682319527,0.096525,103600.0,103590.0,0.0071423]
[1737682319734,0.20375703,103600.0,103590.0,0.0001423]
[1737682319940,0.20375703,103600.0,103590.0,0.0011423]
[1737682320414,0.20375703,103600.0,103590.0,0.0001423]
[1737682320647,0.40375703,103600.0,103590.0,0.0001423]
[1737682320861,0.40375703,103600.0,103590.0,0.0031423]
[1737682321114,0.296525,103600.0,103590.0,0.0031423]
[1737682321618,0.62412083,103610.0,103600.0,0.096525]
[1737682321825,0.52759883,103610.0,103600.0,0.096525]
[1737682322030,0.52759883,103610.0,103600.0,0.146225]
[1737682322445,0.62411383,103610.0,103600.0,0.228425]
[1737682322855,0.62511383,103610.0,103600.0,0.228425]
[1737682323682,0.62411383,103610.0,103600.0,0.228425]
[1737682323879,0.62411383,103610.0,103600.0,0.235425]
[1737682324321,0.52759883,103610.0,103600.0,0.229425]
[1737682324584,0.52759883,103610.0,103600.0,0.235425]
[1737682325142,0.62411383,103610.0,103600.0,0.1379]
[1737682325348,0.62411383,103610.0,103600.0,0.234425]
[1737682326181,0.62411383,103610.0,103600.0,0.235425]
[1737682326385,0.52759883,103610.0,103600.0,0.235425]
[1737682326742,0.32759883,103610.0,103600.0,0.235425]
[1737682327320,0.42411383,103610.0,103600.0,0.1389]
[1737682327642,0.42411383,103610.0,103600.0,0.1504747]
[1737682327779,0.62411383,103610.0,103600.0,0.2469997]
[1737682327998,0.82869315,103610.0,103600.0,0.0185747]
[1737682328228,0.50139315,103610.0,103600.0,0.0175747]
[1737682328657,0.50139315,103610.0,103600.0,0.006]
[1737682329104,0.096525,103600.0,103590.0,0.0001423]
[1737682329308,0.30110432,103600.0,103590.0,0.0001423]
[1737682329506,1.80110432,103600.0,103590.0,0.0001423]
[1737682329715,2.00110432,103600.0,103590.0,0.0001423]
[1737682329915,2.15743008,103600.0,103590.0,0.0001423]
[1737682330113,2.02410432,103600.0,103590.0,0.0001423]
[1737682330573,0.66133635,103600.0,103590.0,0.0001423]
[1737682330787,0.63090432,103600.0,103590.0,0.0001423]
[1737682331004,0.73813635,103600.0,103590.0,0.0001423]
[1737682331212,0.83548364,103600.0,103590.0,0.0001423]
[1737682332025,0.73913635,103600.0,103590.0,0.0001423]
[1737682332248,0.73913635,103600.0,103590.0,0.0031423]
[1737682332399,0.73813635,103600.0,103590.0,0.0001423]
[1737682332787,0.74013635,103600.0,103590.0,0.0001423]
[1737682333143,0.73013635,103600.0,103590.0,0.0001423]
[1737682333358,0.63544787,103600.0,103590.0,0.0001423]
[1737682333530,0.61544787,103600.0,103590.0,0.0001423]
[1737682333733,0.53864787,103600.0,103590.0,0.0001423]
[1737682335152,0.5159467,103600.0,103590.0,0.0001423]
[1737682335374,0.40871467,103600.0,103590.0,0.0793423]
[1737682335603,0.5159467,103600.0,103590.0,0.0793423]
[1737682336067,0.5109467,103600.0,103590.0,0.0793423]
[1737682336456,0.41459941,103600.0,103590.0,0.0793423]
[1737682336961,0.29782383,103600.0,103590.0,0.1758763]
[1737682337204,0.20129883,103600.0,103590.0,0.1758763]
[1737682337708,0.20405586,103600.0,103590.0,0.0793423]
[1737682338181,0.20505586,103600.0,103590.0,0.0793423]
[1737682338688,0.20405586,103600.0,103590.0,0.0793423]
[1737682338930,0.50140315,103600.0,103590.0,0.0793423]
[1737682339157,0.50140315,103600.0,103590.0,0.0001423]
[1737682339158,0.79557922,103600.0,103590.0,0.0001423]
[1737682339360,0.79557922,103600.0,103590.0,0.0031423]
[1737682339570,0.52440315,103600.0,103590.0,0.0001423]
[1737682339787,0.52440315,103600.0,103590.0,0.0031423]
[1737682340199,0.50140315,103600.0,103590.0,0.0001423]
[1737682340457,0.40405586,103600.0,103590.0,0.0810423]
[1737682341167,0.40705586,103600.0,103590.0,0.0810423]
[1737682341426,0.29982383,103600.0,103590.0,0.1775763]
[1737682341853,0.29982383,103600.0,103590.0,0.0810423]
[1737682342311,0.20329883,103600.0,103590.0,0.1775763]
[1737682342530,0.20029883,103600.0,103590.0,0.1775763]
[1737682342739,0.29682383,103600.0,103590.0,0.1775763]
[1737682342950,0.20029883,103600.0,103590.0,0.1775763]
[1737682343160,0.20029883,103600.0,103590.0,0.1805763]
[1737682343645,0.20029883,103600.0,103590.0,0.2262763]
[1737682343870,0.00029883,103600.0,103590.0,0.2292763]
[1737682351964,0.20405586,103600.0,103590.0,0.0031423]
[1737682352633,0.40405586,103600.0,103590.0,0.0031423]
[1737682354902,0.73135586,103600.0,103590.0,0.0031423]
[1737682355602,0.73135586,103600.0,103590.0,0.1531423]
[1737682356818,0.62412383,103600.0,103590.0,0.1531423]
[1737682358535,0.73135586,103600.0,103590.0,0.1531423]
[1737682360158,0.73135586,103600.0,103590.0,0.16473241]
[1737682361677,0.73135586,103600.0,103590.0,0.1531423]
[1737682361831,0.52759883,103600.0,103590.0,0.2954763]
[1737682362185,0.52759883,103600.0,103590.0,0.3713763]
[1737682362882,0.32759883,103600.0,103590.0,0.3713763]
[1737682363384,0.32759883,103600.0,103590.0,0.4013763]
[1737682363920,0.42412383,103600.0,103590.0,0.4013763]
[1737682364129,0.32759883,103600.0,103590.0,0.4013763]
[1737682367351,0.32759883,103600.0,103590.0,0.2513763]
[1737682369561,0.43483086,103600.0,103590.0,0.2513763]
[1737682369822,0.73135586,103600.0,103590.0,0.1090423]
[1737682370900,0.73135586,103600.0,103590.0,0.0790423]
[1737682372441,0.73135586,103600.0,103590.0,0.1755763]
[1737682372651,0.62412383,103600.0,103590.0,0.1755763]
[1737682372973,0.52759883,103600.0,103590.0,0.20567481]
[1737682373656,0.32759883,103600.0,103590.0,0.20567481]
[1737682375630,0.42412383,103600.0,103590.0,0.20567481]
[1737682375836,0.53135586,103600.0,103590.0,0.10914081]
[1737682376259,0.42412383,103600.0,103590.0,0.21540741]
[1737682376694,0.62412383,103600.0,103590.0,0.21540741]
[1737682378150,0.52759883,103600.0,103590.0,0.21540741]
[1737682378782,0.62412383,103600.0,103590.0,0.1853089]
[1737682379009,0.62412383,103600.0,103590.0,0.21542262]
[1737682379518,0.52759883,103600.0,103590.0,0.21542262]
[1737682379721,0.32759883,103600.0,103590.0,0.21542262]
[1737682380432,0.42412383,103600.0,103590.0,0.21542262]
[1737682380656,0.62412383,103600.0,103590.0,0.21542262]
[1737682381046,0.52759883,103600.0,103590.0,0.21542262]
[1737682381617,0.62412383,103600.0,103590.0,0.21542262]
[1737682383191,0.52759883,103600.0,103590.0,0.21542262]
[1737682383714,0.32759883,103600.0,103590.0,0.21542262]
[1737682384388,0.32759883,103600.0,103590.0,0.3016722]
[1737682385113,0.32759883,103600.0,103590.0,0.3316722]
[1737682387566,0.32759883,103600.0,103590.0,0.3340362]
[1737682388064,0.32759883,103600.0,103590.0,0.24778662]
[1737682388517,0.53135586,103600.0,103590.0,0.06562002]
[1737682388733,0.73135586,103600.0,103590.0,0.03562002]
[1737682388944,2.40560315,103600.0,103590.0,0.0055063]
[1737682389153,2.07830315,103600.0,103590.0,0.0055063]
[1737682390804,2.18553518,103600.0,103590.0,0.0055063]
[1737682391022,2.33681713,103600.0,103590.0,0.0055063]
[1737682391232,0.85681713,103600.0,103590.0,0.0055063]
[1737682391454,0.87565317,103600.0,103590.0,0.0055063]
[1737682391868,0.79327122,103600.0,103590.0,0.0055063]
[1737682392288,0.79327122,103600.0,103590.0,0.0025063]
[1737682392502,0.79627122,103600.0,103590.0,0.0025063]
[1737682392925,0.80627122,103600.0,103590.0,0.0025063]
[1737682393348,0.81600185,103600.0,103590.0,0.0025063]
[1737682393969,0.87900322,103600.0,103590.0,0.0025063]
[1737682394181,0.88100322,103600.0,103590.0,0.0025063]
[1737682394391,0.1723,103590.0,103580.0,0.0533761]
[1737682394600,2.09064535,103590.0,103580.0,0.0533761]
[1737682395019,0.59064535,103590.0,103580.0,0.0533761]
[1737682395639,0.79069493,103590.0,103580.0,0.0533761]
[1737682396287,0.173843,103580.0,103570.0,0.0001422]
[1737682396465,1.87842232,103580.0,103570.0,0.0001422]
[1737682397514,1.88042232,103580.0,103570.0,0.0001422]
[1737682397758,2.08042232,103580.0,103570.0,0.0001422]
[1737682398216,2.08342232,103580.0,103570.0,0.0001422]
[1737682399596,0.50412232,103580.0,103570.0,0.0001422]
[1737682400421,0.50112232,103580.0,103570.0,0.0001422]
[1737682401781,0.51058131,103580.0,103570.0,0.0001422]
[1737682403126,0.5296898,103580.0,103570.0,0.0001422]
[1737682405485,0.52998863,103580.0,103570.0,0.0001422]
[1737682409717,0.41353285,103580.0,103570.0,0.0001422]
[1737682409940,0.20029883,103580.0,103570.0,0.1783952]
[1737682410190,0.20029883,103580.0,103570.0,0.32134249]
[1737682410626,0.00029883,103580.0,103570.0,0.32134249]
[1737682411478,0.00129883,103580.0,103570.0,0.32734249]
[1737682412324,0.00129883,103580.0,103570.0,0.32834249]
[1737682413007,0.00129883,103580.0,103570.0,0.32734249]
[1737682413211,0.00129883,103580.0,103570.0,0.32934249]
[1737682414541,0.00129883,103580.0,103570.0,0.33896933]
[1737682414770,0.00129883,103580.0,103570.0,0.36896547]
[1737682415415,0.00129883,103580.0,103570.0,0.33896933]
[1737682415847,0.00129883,103580.0,103570.0,0.36896575]
[1737682424938,0.00129883,103580.0,103570.0,0.45540684]
[1737682427425,0.00129883,103580.0,103570.0,0.60540684]
[1737682431930,0.00129883,103580.0,103570.0,0.51896575]
[1737682435490,0.00129883,103580.0,103570.0,0.24166575]
[1737682435701,0.00129883,103580.0,103570.0,0.26232204]
[1737682435919,0.53237386,103580.0,103570.0,0.09258329]
[1737682436151,0.61477386,103580.0,103570.0,0.09558329]
[1737682436585,0.71212115,103580.0,103570.0,0.09558329]
[1737682436791,0.96122115,103580.0,103570.0,0.09558329]
[1737682436998,0.97947823,103580.0,103570.0,0.08958329]
[1737682437421,0.97947823,103580.0,103570.0,0.09558329]
[1737682437627,0.67517823,103580.0,103570.0,0.08758329]
[1737682438229,0.67517823,103580.0,103570.0,0.08658329]
[1737682438367,0.67617823,103580.0,103570.0,0.08658329]
[1737682439168,0.67617823,103580.0,103570.0,0.0001422]
[1737682440906,0.78352552,103580.0,103570.0,0.0001422]
[1737682441103,0.68617823,103580.0,103570.0,0.0001422]
[1737682441318,0.70617823,103580.0,103570.0,0.0001422]
[1737682441526,0.69617823,103580.0,103570.0,0.0001422]
[1737682441739,0.70501618,103580.0,103570.0,0.0001422]
[1737682441947,0.69001618,103580.0,103570.0,0.0001422]
[1737682442150,0.71001618,103580.0,103570.0,0.0001422]
[1737682442585,0.68701618,103580.0,103570.0,0.0001422]
[1737682443230,0.66701618,103580.0,103570.0,0.0001422]
[1737682444416,2.16701618,103580.0,103570.0,0.0001422]
[1737682445563,0.43816889,103580.0,103570.0,0.0001422]
[1737682445989,2.03551618,103580.0,103570.0,0.0001422]
[1737682446661,2.03351618,103580.0,103570.0,0.0001422]
[1737682446891,2.03051618,103580.0,103570.0,0.0001422]
[1737682448142,2.03151618,103580.0,103570.0,0.0001422]
[1737682450360,0.53151618,103580.0,103570.0,0.0001422]
[1737682450820,2.03151618,103580.0,103570.0,0.0001422]
[1737682452289,2.02167823,103580.0,103570.0,0.0001422]
[1737682453391,0.20129883,103580.0,103570.0,0.0966952]
[1737682454248,0.20029883,103580.0,103570.0,0.0966952]
[1737682454838,0.20029883,103580.0,103570.0,0.0996952]
[1737682454990,0.29684183,103580.0,103570.0,0.0996952]
[1737682455203,0.40407386,103580.0,103570.0,0.0996952]
[1737682455836,0.30753086,103580.0,103570.0,0.0996952]
[1737682456240,0.20029883,103580.0,103570.0,0.0996952]
[1737682456645,0.00029883,103580.0,103570.0,0.0996952]
[1737682456964,0.00029883,103580.0,103570.0,0.27674249]
[1737682464701,0.00029883,103580.0,103570.0,0.30674857]
[1737682464921,0.00029883,103580.0,103570.0,0.35404857]
[1737682466168,0.00029883,103580.0,103570.0,0.32404249]
[1737682468866,0.00029883,103580.0,103570.0,0.22748949]
[1737682469127,0.00029883,103580.0,103570.0,0.32404249]
[1737682469595,0.00029883,103580.0,103570.0,0.19704249]
[1737682469850,0.20407386,103580.0,103570.0,0.0031422]
[1737682470971,0.09684183,103580.0,103570.0,0.0031422]
[1737682473433,0.20407386,103580.0,103570.0,0.0031422]
[1737682473637,0.40407386,103580.0,103570.0,0.0031422]
[1737682473842,0.73137386,103580.0,103570.0,0.0031422]
[1737682475878,0.75079085,103580.0,103570.0,0.0031422]
[1737682476079,0.65424785,103580.0,103570.0,0.0031422]
[1737682477194,0.75079085,103580.0,103570.0,0.0031422]
[1737682477402,2.47223814,103580.0,103570.0,0.0031422]
[1737682479296,2.20284612,103580.0,103570.0,0.0031422]
[1737682479498,0.52759883,103580.0,103570.0,0.0031422]
[1737682479732,0.32759883,103580.0,103570.0,0.0031422]
[1737682480669,0.52759883,103580.0,103570.0,0.0001422]
[1737682481124,0.73137386,103580.0,103570.0,0.0001422]
[1737682481547,0.87752115,103580.0,103570.0,0.0001422]
[1737682481757,0.55022115,103580.0,103570.0,0.0001422]
[1737682485799,0.87752115,103580.0,103570.0,0.0001422]
[1737682486012,0.95702115,103580.0,103570.0,0.0001422]
[1737682486681,0.72248912,103580.0,103570.0,0.0001422]
[1737682487517,0.62514183,103580.0,103570.0,0.0001422]
[1737682488269,0.73237386,103580.0,103570.0,0.0001422]
[1737682490212,0.82972115,103580.0,103570.0,0.0001422]
[1737682491051,0.87922115,103580.0,103570.0,0.0001422]
[1737682491268,0.95872115,103580.0,103570.0,0.0001422]
[1737682494414,2.45872115,103580.0,103570.0,0.0001422]
[1737682495140,2.32972115,103580.0,103570.0,0.0001422]
[1737682498733,2.23237386,103580.0,103570.0,0.0001422]
[1737682501972,2.23237386,103580.0,103570.0,0.1501422]
[1737682502431,0.52859883,103580.0,103570.0,0.2466952]
[1737682502650,0.52859883,103580.0,103570.0,0.1501422]
[1737682502835,0.32859883,103580.0,103570.0,0.1501422]
[1737682503091,0.32859883,103580.0,103570.0,0.2466952]
[1737682504261,0.32859883,103580.0,103570.0,0.40692198]
[1737682504476,0.00129883,103580.0,103570.0,0.50426927]
[1737682504689,0.00129883,103580.0,103570.0,0.40692198]
[1737682505164,0.00129883,103580.0,103570.0,0.3767952]
[1737682506035,0.00129883,103580.0,103570.0,0.4069209]
[1737682506466,0.00029883,103580.0,103570.0,0.3133679]
[1737682506675,0.00029883,103580.0,103570.0,0.3307952]
[1737682506904,0.00029883,103580.0,103570.0,0.36092024]
[1737682507098,0.00029883,103580.0,103570.0,0.2342422]
[1737682507374,0.20407386,103580.0,103570.0,0.1531422]
[1737682508008,0.40407386,103580.0,103570.0,0.1531422]
[1737682508402,1.90407386,103580.0,103570.0,0.1531422]
[1737682508831,1.90407386,103580.0,103570.0,0.0031422]
[1737682509059,2.00242115,103580.0,103570.0,0.0001422]
[1737682511682,2.10052115,103580.0,103570.0,0.0001422]
[1737682511902,0.6559941,103580.0,103570.0,0.0001422]
[1737682512909,0.6589941,103580.0,103570.0,0.0001422]
[1737682513325,0.6579941,103580.0,103570.0,0.0001422]
[1737682513749,0.6599941,103580.0,103570.0,0.0001422]
[1737682515037,0.75734139,103580.0,103570.0,0.0001422]
[1737682515748,0.79598139,103580.0,103570.0,0.0001422]
[1737682516188,0.81543278,103580.0,103570.0,0.0001422]
[1737682516825,0.71808549,103580.0,103570.0,0.0001422]
[1737682518260,0.82531752,103580.0,103570.0,0.0001422]
[1737682518498,0.276853,103570.0,103560.0,2.1e-07]
[1737682518735,0.48143232,103570.0,103560.0,2.1e-07]
[1737682518947,0.58866435,103570.0,103560.0,2.1e-07]
[1737682519647,0.78866435,103570.0,103560.0,2.1e-07]
[1737682520128,0.77866435,103570.0,103560.0,2.1e-07]
[1737682520345,0.78266435,103570.0,103560.0,2.1e-07]
[1737682520556,0.79266435,103570.0,103560.0,2.1e-07]
[1737682520815,0.65743232,103570.0,103560.0,2.1e-07]
[1737682521320,0.61233232,103570.0,103560.0,2.1e-07]
[1737682521573,0.61033232,103570.0,103560.0,2.1e-07]
[1737682521813,0.60633232,103570.0,103560.0,2.1e-07]
[1737682522068,0.52713232,103570.0,103560.0,2.1e-07]
[1737682522821,0.52413232,103570.0,103560.0,2.1e-07]
[1737682523063,0.52513232,103570.0,103560.0,2.1e-07]
[1737682523267,0.53113232,103570.0,103560.0,2.1e-07]
[1737682523479,0.53013232,103570.0,103560.0,2.1e-07]
[1737682523897,0.53213232,103570.0,103560.0,2.1e-07]
[1737682524600,2.00913232,103570.0,103560.0,2.1e-07]
[1737682525869,2.00713232,103570.0,103560.0,2.1e-07]
[1737682526100,2.00113232,103570.0,103560.0,2.1e-07]
[1737682526288,2.00213232,103570.0,103560.0,2.1e-07]
[1737682526515,2.00513232,103570.0,103560.0,2.1e-07]
[1737682526736,2.00113232,103570.0,103560.0,2.1e-07]
[1737682527191,2.00213232,103570.0,103560.0,2.1e-07]
[1737682527920,2.00513232,103570.0,103560.0,2.1e-07]
[1737682528677,2.00366932,103570.0,103560.0,2.1e-07]
[1737682529563,1.704,103570.0,103560.0,0.09656221]
[1737682529712,1.504,103570.0,103560.0,0.22486221]
[1737682529949,0.004,103570.0,103560.0,0.22486221]
[1737682531218,0.001,103570.0,103560.0,0.22486221]
[1737682532160,0.79026086,103580.0,103560.0,0.22486221]
[1737682532161,0.59716286,103580.0,103560.0,0.41798621]
[1737682533445,0.79026186,103580.0,103560.0,0.41798621]
[1737682533891,0.3273,103570.0,103560.0,0.41798621]
[1737682534311,1.8273,103570.0,103560.0,0.41798621]
[1737682535119,1.8273,103570.0,103560.0,0.42098621]
[1737682535364,1.8273,103570.0,103560.0,0.42198621]
[1737682535862,1.8273,103570.0,103560.0,0.42098621]
[1737682536337,1.8273,103570.0,103560.0,0.42198621]
[1737682536604,0.3273,103570.0,103560.0,0.42198621]
[1737682537088,0.3273,103570.0,103560.0,0.45203159]
[1737682537337,0.3273,103570.0,103560.0,0.44903159]
[1737682537564,0.3273,103570.0,103560.0,0.45203159]
[1737682538791,0.32759883,103580.0,103560.0,0.37391688]
[1737682539004,0.32759883,103580.0,103570.0,0.173453]
[1737682539218,0.32759883,103580.0,103570.0,0.219153]
[1737682540521,0.53217815,103580.0,103560.0,0.07690021]
[1737682540733,0.53217815,103580.0,103560.0,2.1e-07]
[1737682540734,0.37973232,103570.0,103560.0,2.1e-07]
[1737682542521,0.37973232,103570.0,103560.0,0.00300021]
[1737682542727,0.58003115,103570.0,103560.0,0.00300021]
[1737682543466,0.58003115,103570.0,103560.0,2.1e-07]
[1737682543711,0.60303115,103570.0,103560.0,2.1e-07]
[1737682544201,0.65013115,103570.0,103560.0,2.1e-07]
[1737682547406,0.75736318,103570.0,103560.0,2.1e-07]
[1737682547611,0.78736318,103570.0,103560.0,2.1e-07]
[1737682548236,0.77736318,103570.0,103560.0,2.1e-07]
[1737682548438,0.67113115,103570.0,103560.0,2.1e-07]
[1737682548641,0.67413115,103570.0,103560.0,2.1e-07]
[1737682551223,0.69353232,103570.0,103560.0,2.1e-07]
[1737682552822,0.67353232,103570.0,103560.0,2.1e-07]
[1737682553227,0.69353232,103570.0,103560.0,2.1e-07]
[1737682553618,0.67353232,103570.0,103560.0,2.1e-07]
[1737682553823,0.69353232,103570.0,103560.0,2.1e-07]
[1737682554647,0.67353232,103570.0,103560.0,2.1e-07]
[1737682556808,0.69353232,103570.0,103560.0,2.1e-07]
[1737682558145,0.67353232,103570.0,103560.0,2.1e-07]
[1737682559585,0.54783232,103570.0,103560.0,2.1e-07]
[1737682560228,0.52483232,103570.0,103560.0,0.07750021]
[1737682561995,0.52483232,103570.0,103560.0,2.1e-07]
[1737682562883,0.54783232,103570.0,103560.0,2.1e-07]
[1737682564385,0.59283232,103570.0,103560.0,2.1e-07]
[1737682564731,0.70006435,103570.0,103560.0,2.1e-07]
[1737682565000,0.78046435,103570.0,103560.0,2.1e-07]
[1737682565568,0.67323232,103570.0,103560.0,2.1e-07]
[1737682570728,0.62823232,103570.0,103560.0,2.1e-07]
[1737682570965,0.54783232,103570.0,103560.0,2.1e-07]
[1737682575131,0.54783232,103570.0,103560.0,0.15000021]
[1737682575599,0.52483232,103570.0,103560.0,0.15000021]
[1737682575848,2.02483232,103570.0,103560.0,0.15000021]
[1737682576821,2.02483232,103570.0,103560.0,2.1e-07]
[1737682576822,2.12883232,103570.0,103560.0,2.1e-07]
[1737682577831,0.62883232,103570.0,103560.0,2.1e-07]
[1737682578074,0.54783232,103570.0,103560.0,2.1e-07]
[1737682581107,0.54783232,103570.0,103560.0,0.15000021]
[1737682584091,0.52483232,103570.0,103560.0,0.22840021]
[1737682587526,0.52483232,103570.0,103560.0,0.07840021]
[1737682599740,0.54783232,103570.0,103560.0,2.1e-07]
[1737682600397,0.52483232,103570.0,103560.0,2.1e-07]
[1737682600849,0.52483232,103570.0,103560.0,0.07590021]
[1737682601435,0.2237,103570.0,103560.0,0.17246221]
[1737682601644,0.00429883,103570.0,103560.0,0.17246221]
[1737682602636,0.10085183,103570.0,103560.0,0.17246221]
[1737682603739,0.00429883,103570.0,103560.0,0.17246221]
[1737682603977,0.00429883,103570.0,103560.0,0.24759149]
[1737682604935,0.00129883,103570.0,103560.0,0.24759149]
[1737682605185,0.00029883,103570.0,103560.0,0.24759149]
[1737682605593,0.00033883,103570.0,103560.0,0.24759149]
[1737682606247,0.00033883,103570.0,103560.0,2.1e-07]
[1737682606248,0.20412386,103570.0,103560.0,2.1e-07]
[1737682606670,0.40412386,103570.0,103560.0,0.0864413]
[1737682608130,0.40712386,103570.0,103560.0,0.0864413]
[1737682608560,0.40812386,103570.0,103560.0,0.0864413]
[1737682608778,0.30089183,103570.0,103560.0,0.1830033]
[1737682608988,0.20433883,103570.0,103560.0,0.3084033]
[1737682609441,0.20433883,103570.0,103560.0,0.33852174]
[1737682609876,0.00333883,103570.0,103560.0,0.3084033]
[1737682610132,0.00333883,103570.0,103560.0,0.3094033]
[1737682610369,0.00333883,103570.0,103560.0,0.25308064]
[1737682610834,0.00033883,103570.0,103560.0,0.25308064]
[1737682611255,0.00033883,103570.0,103560.0,0.25608064]
[1737682614735,1.82739648,103580.0,103570.0,0.174753]
[1737682615774,2.02739648,103580.0,103570.0,0.174753]
[1737682616721,2.12393948,103580.0,103570.0,0.174753]
[1737682617040,2.02739648,103580.0,103570.0,0.174753]
[1737682617870,2.12393948,103580.0,103570.0,0.174753]
[1737682618285,2.23117151,103580.0,103570.0,0.174753]
[1737682618586,0.096553,103570.0,103560.0,0.12550021]
[1737682618768,0.50816435,103570.0,103560.0,2.1e-07]
[1737682619224,0.55806435,103570.0,103560.0,2.1e-07]
[1737682619925,0.55806435,103570.0,103560.0,0.00100021]
[1737682620145,0.45083232,103570.0,103560.0,0.00100021]
[1737682620383,0.45083232,103570.0,103560.0,0.00400021]
[1737682620838,0.45083232,103570.0,103560.0,0.00100021]
[1737682621266,0.45083232,103570.0,103560.0,2.1e-07]
[1737682621700,0.65083232,103570.0,103560.0,2.1e-07]
[1737682622530,0.75806435,103570.0,103560.0,2.1e-07]
[1737682622971,0.75836318,103570.0,103560.0,2.1e-07]
[1737682623191,0.76836318,103570.0,103560.0,2.1e-07]
[1737682623410,0.78071244,103570.0,103560.0,2.1e-07]
[1737682624081,0.79071244,103570.0,103560.0,2.1e-07]
[1737682624273,0.80019593,103570.0,103560.0,2.1e-07]
[1737682624704,0.79119593,103570.0,103560.0,2.1e-07]
[1737682638869,0.81119593,103570.0,103560.0,2.1e-07]
[1737682639442,0.82119593,103570.0,103560.0,2.1e-07]
[1737682641885,0.096581,103540.0,103530.0,0.0788423]
[1737682642102,0.32416032,103540.0,103530.0,0.0001423]
[1737682643162,0.32516032,103540.0,103530.0,0.00629175]
[1737682643381,0.32416032,103540.0,103530.0,0.00029175]
[1737682644779,0.52416032,103540.0,103530.0,0.00029175]
[1737682645628,0.79204599,103540.0,103530.0,0.00029175]
[1737682645796,0.80204599,103540.0,103530.0,0.00029175]
[1737682646568,0.77278219,103540.0,103530.0,7.5e-07]
[1737682646769,0.77778219,103540.0,103530.0,7.5e-07]
[1737682646978,0.89680859,103540.0,103530.0,7.5e-07]
[1737682647192,0.47249926,103520.0,103510.0,0.00966218]
[1737682647394,1.42444655,103520.0,103510.0,0.01016065]
[1737682647586,1.46744655,103520.0,103510.0,0.01016065]
[1737682647781,1.66744655,103520.0,103510.0,0.01016065]
[1737682648015,1.63744655,103520.0,103510.0,6.5e-07]
[1737682648234,1.66165622,103520.0,103510.0,6.5e-07]
[1737682649757,1.66765622,103520.0,103510.0,6.5e-07]
[1737682649942,1.66965622,103520.0,103510.0,6.5e-07]
[1737682651119,1.64544655,103520.0,103510.0,6.5e-07]
[1737682651331,1.74279384,103520.0,103510.0,6.5e-07]
[1737682652054,1.52484642,103520.0,103510.0,6.5e-07]
[1737682652275,1.38414642,103520.0,103510.0,6.5e-07]
[1737682652704,1.51474655,103520.0,103510.0,6.5e-07]
[1737682653059,1.52438588,103520.0,103510.0,6.5e-07]
[1737682653486,1.54391777,103520.0,103510.0,6.5e-07]
[1737682654937,1.43631764,103520.0,103510.0,6.5e-07]
[1737682655535,1.65126506,103520.0,103510.0,6.5e-07]
[1737682657155,1.70993106,103520.0,103510.0,6.5e-07]
[1737682657577,1.61258377,103520.0,103510.0,6.5e-07]
[1737682658382,1.59258377,103520.0,103510.0,6.5e-07]
[1737682658576,1.47498364,103520.0,103510.0,6.5e-07]
[1737682658793,1.47498364,103520.0,103510.0,0.00014305]
[1737682658981,1.45228268,103520.0,103510.0,0.00014305]
[1737682659397,1.47528268,103520.0,103510.0,0.00014305]
[1737682661128,1.47532268,103520.0,103510.0,0.00014305]
[1737682661382,1.60292281,103520.0,103510.0,0.00014305]
[1737682661665,1.69092281,103520.0,103510.0,0.00014305]
[1737682661916,0.44650926,103510.0,103500.0,0.0001423]
[1737682662135,0.54385655,103510.0,103500.0,6.7e-07]
[1737682662391,0.227718,103500.0,103490.0,0.01549728]
[1737682662632,0.52436542,103500.0,103490.0,0.01554697]
[1737682662894,0.61196555,103500.0,103490.0,0.01554697]
[1737682663138,0.31184626,103470.0,103460.0,0.00095826]
[1737682663385,0.119655,103460.0,103450.0,0.21080056]
[1737682663623,0.32460242,103460.0,103450.0,0.05080056]
[1737682663871,0.32460242,103460.0,103450.0,0.20080056]
[1737682664319,0.32460242,103460.0,103450.0,0.05080056]
[1737682664573,0.32460242,103460.0,103450.0,0.1998423]
[1737682664832,0.52460242,103460.0,103450.0,0.19998682]
[1737682665105,0.52460242,103460.0,103450.0,0.20398682]
[1737682665331,0.50160242,103460.0,103450.0,0.20398682]
[1737682665817,0.51141336,103460.0,103450.0,0.20398682]
[1737682666025,0.51141336,103460.0,103450.0,0.20498682]
[1737682666280,0.53441336,103460.0,103450.0,0.20498682]
[1737682667048,0.53441336,103460.0,103450.0,0.15528682]
[1737682674813,2.01141336,103460.0,103450.0,0.15528682]
[1737682675022,0.51141336,103460.0,103450.0,0.15528682]
[1737682675232,0.50160242,103460.0,103450.0,0.15528682]
[1737682675440,2.00160242,103460.0,103450.0,0.15528682]
[1737682675754,2.00160242,103460.0,103450.0,0.20478682]